Workbook

Sheet MSU
B1: Klaus Rauhansalo | E1: 21.2.1971
B2: SUPERPESIS | E2: Runkosarja | I2: Kärkilyönnit (KL), pesänvälit | P2: Ylempi loppusarja | W2: Alempi loppusarja | AD2: Arvo-ottelut | AH2: Mitalit
B3: Vuosi | C3: Sija | D3: Seura | E3: OTT | F3: KUN | G3: LÖI | H3: TOI | I3: KL | J3: 0 > 1 | K3: 1 > 2 | L3: 2 > 3 | M3: 3 > k | N3: KL-% | P3: OTT | Q3: KUN | R3: LÖI | S3: TOI | T3: KL | U3: KL-% | W3: OTT | X3: KUN | Y3: LÖI | Z3: TOI | AA3: KL | AB3: KL-% | AD3: IL | AE3: LL | AF3: hSM | AG3: K | AH3: H | AI3: P
B4: 1991 | C4: 14. | D4: KPL | E4: 15 | F4: 0 | G4: 1 | H4: 2 | I4: 15 | J4: 7 | K4: 5 | L4: 2 | M4: 1 | N4: 20.3 %
B5: 1992 | C5: 14. | D5: KPL | F5: ykköspesis
B6: 1993 | C6: 2. | D6: HaKi | F6: ykköspesis | W6: 2 | X6: 0 | Y6: 0 | Z6: 1 | AA6: 3 | AB6: 23.1 %
B7: 1994 | C7: 2. | D7: HaKi | F7: ykköspesis | W7: 14 | X7: 0 | Y7: 5 | Z7: 1 | AA7: 24 | AB7: 30.4 %
B8: Yhteensä | E8: 15 | F8: 0 | G8: 1 | H8: 2 | I8: 15 | J8: 7 | K8: 5 | L8: 2 | M8: 1 | N8: 20.3 % | P8: 0 | Q8: 0 | R8: 0 | S8: 0 | T8: 0 | U8: 0.0 % | W8: =PRODUCT(E14) -> 16 | X8: =PRODUCT(F14) -> 0 | Y8: 5 | Z8: 2 | AA8: 27 | AB8: =PRODUCT(N14) -> 29.3 % | AD8: 0 | AE8: 0 | AF8: 0 | AG8: 0 | AH8: 0 | AI8: 0
B9: Pesispörssi | D9: 12.7
B11: URA SUPERISSA | E11: OTT | F11: KUN | G11: LÖI | H11: TOI | I11: KL | K11: ka/L | L11: ka/T | M11: ka/KL | N11: KL-% | P11: ENSIMMÄISET RUNKOSARJASSA
B12: Runkosarja | E12: 15 | F12: 0 | G12: 1 | H12: 2 | I12: 15 | K12: 0.07 | L12: 0.13 | M12: 1.00 | N12: 20.3 % | P12: Ottelu | R12: 16.05. 1991 KPL - Kiri 8-11 | Y12: 1. ottelu | AA12: 20 v 2 kk 25 pv
B13: Ylempi loppusarja | P13: Lyöty | R13: 16.05. 1991 KPL - Kiri 8-11 | Y13: 1. ottelu | AA13: 20 v 2 kk 25 pv
B14: Alempi loppusarja | E14: 16 | F14: 0 | G14: 5 | H14: 2 | I14: 27 | K14: 0.31 | L14: 0.13 | M14: 1.69 | N14: 29.3 % | P14: Tuotu | R14: 16.05. 1991 KPL - Kiri 8-11 | Y14: 1. ottelu | AA14: 20 v 2 kk 25 pv
B15: KAIKKI | E15: 31 | F15: 0 | G15: 6 | H15: 4 | I15: 42 | K15: 0.19 | L15: 0.13 | M15: 1.35 | N15: 25.3 % | P15: Kunnari
B17: Seurat | D17: KPL = Kouvolan Pallonlyöjät (1931)
D18: HaKi = Hakunilan Kisa (1978)

Sheet MYP
B1: Klaus Rauhansalo | E1: 21.2.1971
B2: YKKÖSPESIS | E2: Runkosarja | L2: Runkosarja TOP-10 | Q2: Jatkosarjat | X2: SUOMENSARJA | AA2: Runkosarja | AH2: Runkosarja TOP-10 | AM2: Jatkosarjat
B3: Vuosi | C3: Sija | D3: Seura | E3: OTT | F3: KUN | G3: LÖI | H3: TOI | I3: KL | J3: KL-% | L3: LÖI | M3: TOI | N3: L+T | O3: KL | Q3: OTT | R3: KUN | S3: LÖI | T3: TOI | U3: KL | V3: KL-% | X3: Vuosi | Y3: Sija | Z3: Seura | AA3: OTT | AB3: KUN | AC3: LÖI | AD3: TOI | AE3: KL | AF3: KL-% | AH3: LÖI | AI3: TOI | AJ3: L+T | AK3: KL | AM3: OTT | AN3: KUN | AO3: LÖI | AP3: TOI | AQ3: KL | AR3: KL-%
B4: 1992 | C4: 14. | D4: KPL | E4: 19 | F4: 0 | G4: 0 | H4: 1 | I4: 35
B5: 1993 | C5: 2. | D5: HaKi | E5: 21 | F5: 0 | G5: 3 | H5: 5 | I5: 30
B6: 1994 | C6: 2. | D6: HaKi | E6: 14 | F6: 1 | G6: 10 | H6: 3 | I6: 41
B7: YHTEENSÄ | E7: =SUM(E4:E6) -> 54 | F7: =SUM(F4:F6) -> 1 | G7: =SUM(G4:G6) -> 13 | H7: =SUM(H4:H6) -> 9 | I7: =SUM(I4:I6) -> 106 | J7: 0.0 % | K7: =SUM(K4:K6) -> 0 | Q7: =SUM(Q4:Q6) -> 0 | R7: =SUM(R4:R6) -> 0 | S7: =SUM(S4:S6) -> 0 | T7: =SUM(T4:T6) -> 0 | U7: =SUM(U4:U6) -> 0 | V7: 0.0 % | W7: =SUM(W4:W6) -> 0 | X7: YHTEENSÄ | AA7: =SUM(AA4:AA6) -> 0 | AB7: =SUM(AB4:AB6) -> 0 | AC7: =SUM(AC4:AC6) -> 0 | AD7: =SUM(AD4:AD6) -> 0 | AE7: =SUM(AE4:AE6) -> 0 | AF7: 0.0 % | AG7: =SUM(AG4:AG6) -> 0 | AM7: =SUM(AM4:AM6) -> 0 | AN7: =SUM(AN4:AN6) -> 0 | AO7: =SUM(AO4:AO6) -> 0 | AP7: =SUM(AP4:AP6) -> 0 | AQ7: =SUM(AQ4:AQ6) -> 0 | AR7: 0.0 % | AS7: =SUM(AS4:AS6) -> 0
B9: KAIKKI OTTELUT | E9: OTT | F9: KUN | G9: LÖI | H9: TOI | I9: KL | J9: KL-% | L9: ka/L | M9: ka/T | N9: ka/l+t | O9: ka/kl | R9: Seurat | T9: KPL = Kouvolan Pallonlyöjät (1931)
B10: SUPERPESIS | E10: 31 | F10: 0 | G10: 6 | H10: 4 | I10: 42 | J10: 25.3 % | K10: =PRODUCT(I10/J10) -> 166.0079051 | L10: =PRODUCT((F10+G10)/E10) -> 0.19 | M10: =PRODUCT(H10/E10) -> 0.13 | N10: =PRODUCT((F10+G10+H10)/E10) -> 0.32 | O10: =PRODUCT(I10/E10) -> 1.35 | T10: HaKi = Hakunilan Kisa (1978)
B11: YKKÖSPESIS | E11: =PRODUCT(E7+Q7) -> 54 | F11: =PRODUCT(F7+R7) -> 1 | G11: =PRODUCT(G7+S7) -> 13 | H11: =PRODUCT(H7+T7) -> 9 | I11: =PRODUCT(I7+U7) -> 106 | J11: 0.0 % | K11: =PRODUCT(K7+W7) -> 0 | L11: =PRODUCT((F11+G11)/E11) -> 0.26 | M11: =PRODUCT(H11/E11) -> 0.17 | N11: =PRODUCT((F11+G11+H11)/E11) -> 0.43 | O11: =PRODUCT(I11/E11) -> 1.96
B12: SUOMENSARJA | E12: =PRODUCT(AA7+AM7) -> 0 | F12: =PRODUCT(AB7+AN7) -> 0 | G12: =PRODUCT(AC7+AO7) -> 0 | H12: =PRODUCT(AD7+AP7) -> 0 | I12: =PRODUCT(AE7+AQ7) -> 0 | J12: 0.0 % | K12: =PRODUCT(AG7+AS7) -> 0 | L12: 0.00 | M12: 0.00 | N12: 0.00 | O12: 0.00
B13: YHTEENSÄ | E13: =SUM(E10:E12) -> 85 | F13: =SUM(F10:F12) -> 1 | G13: 19 | H13: 13 | I13: 148 | J13: 0.0 % | K13: =SUM(K10:K12) -> 166.0079051 | L13: =PRODUCT((F13+G13)/E13) -> 0.24 | M13: =PRODUCT(H13/E13) -> 0.15 | N13: =PRODUCT((F13+G13+H13)/E13) -> 0.39 | O13: =PRODUCT(I13/E13) -> 1.74

Sheet Arvo-ottelut
B1: ITÄ - LÄNSI - KORTTI
B2: Klaus Rauhansalo | C2: 21.2.1971
B3: C-POJAT | C3: Itä - Länsi, tulos | D3: Joukkue | E3: Seura | G3: V | H3: T | I3: H | J3: Up. | K3: Lj. | L3: Palk. | M3: O | N3: K | O3: L | P3: T | Q3: KL | R3: 1 | S3: 2 | T3: 3 | U3: k | V3: KL-% | W3: Pelinjohtaja | X3: Yleisöä
B4: 19.07. 1986 Virrat | C4: 20-9 | D4: Itä | E4: KPL | G4: 1 | M4: 1 | O4: 3 | P4: 2 | W4: Veli Haukijärvi | X4: 235
B6: B-POJAT | C6: Itä - Länsi, tulos | D6: Joukkue | E6: Seura | G6: V | H6: T | I6: H | J6: Up. | K6: Lj. | L6: Palk. | M6: O | N6: K | O6: L | P6: T | Q6: KL | R6: 1 | S6: 2 | T6: 3 | U6: k | V6: KL-% | W6: Pelinjohtaja | X6: Yleisöä
B7: 06.08. 1988 Teuva | C7: 4-12 | D7: Itä | E7: KPL | I7: 1 | M7: 1 | W7: Juha Tanskanen | X7: 300
